[Event "Titled Tuesday Blitz August 15 Late 2023"]
[White "Manon-og, Ramon Jr."]
[Black "Pinheiro, Iung Alicio de O."]
[WhiteFideId "5200776"]
[BlackFideId "2104350"]
[WhiteElo "2311"]
[BlackElo "2599"]
[Result "1-0"]
[Round "4"]
[TimeControl "180+1"]
[Date "2023.08.15"]
[WhiteClock "0:00:06"]
[BlackClock "0:00:00"]
[Board "147"]

1. e4 {[%clk 0:02:29]}  c5 {[%clk 0:02:58]} 2. Nf3 {[%clk 0:02:29]}  Nc6 {[%clk 0:02:58]} 3. Bb5 {[%clk 0:02:29]}  e6 {[%clk 0:02:57]} 4. O-O {[%clk 0:02:29]}  Nge7 {[%clk 0:02:56]} 5. c4 {[%clk 0:02:27]}  a6 {[%clk 0:02:53]} 6. Ba4 {[%clk 0:02:27]}  g6 {[%clk 0:02:07]} 7. Nc3 {[%clk 0:02:26]}  Bg7 {[%clk 0:02:07]} 8. d3 {[%clk 0:02:27]}  O-O {[%clk 0:02:04]} 9. Bg5 {[%clk 0:02:27]}  Nd4 {[%clk 0:01:56]} 10. Nxd4 {[%clk 0:02:22]}  cxd4 {[%clk 0:01:55]} 11. Ne2 {[%clk 0:02:22]}  h6 {[%clk 0:01:55]} 12. Bh4 {[%clk 0:02:18]}  g5 {[%clk 0:01:37]} 13. Bg3 {[%clk 0:02:18]}  f5 {[%clk 0:01:38]} 14. f3 {[%clk 0:02:14]}  f4 {[%clk 0:01:00]} 15. Bf2 {[%clk 0:02:14]}  e5 {[%clk 0:01:00]} 16. b4 {[%clk 0:02:11]}  d6 {[%clk 0:00:58]} 17. c5 {[%clk 0:02:02]}  d5 {[%clk 0:00:51]} 18. Bb3 {[%clk 0:01:54]}  Kh8 {[%clk 0:00:51]} 19. a4 {[%clk 0:01:44]}  dxe4 {[%clk 0:00:36]} 20. dxe4 {[%clk 0:01:44]}  Ng6 {[%clk 0:00:37]} 21. Nc1 {[%clk 0:01:42]}  h5 {[%clk 0:00:37]} 22. Nd3 {[%clk 0:01:40]}  g4 {[%clk 0:00:37]} 23. fxg4 {[%clk 0:01:40]}  hxg4 {[%clk 0:00:37]} 24. b5 {[%clk 0:01:34]}  Qg5 {[%clk 0:00:32]} 25. g3 {[%clk 0:01:22]}  Qh5 {[%clk 0:00:28]} 26. Bd5 {[%clk 0:01:13]}  Qh3 {[%clk 0:00:20]} 27. Qc2 {[%clk 0:00:54]}  f3 {[%clk 0:00:17]} 28. Be1 {[%clk 0:00:54]}  Bh6 {[%clk 0:00:18]} 29. Bb4 {[%clk 0:00:39]}  Be3+ {[%clk 0:00:16]} 30. Kh1 {[%clk 0:00:40]}  Kg7 {[%clk 0:00:15]} 31. c6 {[%clk 0:00:36]}  b6 {[%clk 0:00:12]} 32. Bxf8+ {[%clk 0:00:36]}  Nxf8 {[%clk 0:00:12]} 33. Nxe5 {[%clk 0:00:30]}  Be6 {[%clk 0:00:09]} 34. Nc4 {[%clk 0:00:20]}  axb5 {[%clk 0:00:07]} 35. axb5 {[%clk 0:00:17]}  Rxa1 {[%clk 0:00:06]} 36. Rxa1 {[%clk 0:00:18]}  f2 {[%clk 0:00:07]} 37. Qe2 {[%clk 0:00:16]}  Bxd5 {[%clk 0:00:02]} 38. exd5 {[%clk 0:00:16]}  Ng6 {[%clk 0:00:03]} 39. Qf1 {[%clk 0:00:12]}  Qh5 {[%clk 0:00:02]} 40. Qg2 {[%clk 0:00:11]}  Ne5 {[%clk 0:00:02]} 41. Nxe5 {[%clk 0:00:11]}  Qxe5 {[%clk 0:00:02]} 42. Rf1 {[%clk 0:00:10]}  d3 {[%clk 0:00:03]} 43. h3 {[%clk 0:00:09]}  d2 {[%clk 0:00:02]} 44. hxg4 {[%clk 0:00:08]}  Qd4 {[%clk 0:00:02]} 45. c7 {[%clk 0:00:08]}  d1=Q {[%clk 0:00:02]} 46. c8=Q {[%clk 0:00:07]}  Q1xg4 {[%clk 0:00:02]} 47. Qc7+ {[%clk 0:00:06]}  Kg6 {[%clk 0:00:00]} 48. Qd6+ {[%clk 0:00:06]} 1-0


[Site "https://www.chess.com"]

[Event "Titled Tuesday Blitz August 15 Late 2023"]
[White "Hartikainen, Jarmo"]
[Black "Li, Hui"]
[WhiteFideId "503134"]
[BlackFideId "15400310"]
[WhiteElo "2109"]
[BlackElo "2336"]
[Result "0-1"]
[Round "4"]
[TimeControl "180+1"]
[Date "2023.08.15"]
[WhiteClock "0:00:07"]
[BlackClock "0:01:04"]
[Board "154"]

1. e4 {[%clk 0:03:00]}  e5 {[%clk 0:02:59]} 2. Nf3 {[%clk 0:03:00]}  Nf6 {[%clk 0:03:00]} 3. d4 {[%clk 0:02:57]}  exd4 {[%clk 0:03:01]} 4. e5 {[%clk 0:02:55]}  Ne4 {[%clk 0:03:01]} 5. Qxd4 {[%clk 0:02:55]}  d5 {[%clk 0:03:02]} 6. exd6 {[%clk 0:02:55]}  Nxd6 {[%clk 0:03:02]} 7. Nc3 {[%clk 0:02:55]}  Nc6 {[%clk 0:03:02]} 8. Qf4 {[%clk 0:02:54]}  Nf5 {[%clk 0:03:02]} 9. Nb5 {[%clk 0:02:23]}  Bb4+ {[%clk 0:02:54]} 10. c3 {[%clk 0:02:15]}  Ba5 {[%clk 0:02:54]} 11. Nbd4 {[%clk 0:02:04]}  Nfxd4 {[%clk 0:02:49]} 12. Nxd4 {[%clk 0:02:03]}  Nxd4 {[%clk 0:02:29]} 13. Qe5+ {[%clk 0:01:19]}  Qe7 {[%clk 0:02:22]} 14. Qxe7+ {[%clk 0:01:18]}  Kxe7 {[%clk 0:02:23]} 15. Bg5+ {[%clk 0:01:13]}  f6 {[%clk 0:02:22]} 16. O-O-O {[%clk 0:01:12]}  fxg5 {[%clk 0:02:13]} 17. Rxd4 {[%clk 0:01:12]}  Bb6 {[%clk 0:01:50]} 18. Re4+ {[%clk 0:01:08]}  Kf6 {[%clk 0:01:44]} 19. h4 {[%clk 0:01:01]}  Bf5 {[%clk 0:01:36]} 20. hxg5+ {[%clk 0:00:55]}  Kxg5 {[%clk 0:01:36]} 21. Re5 {[%clk 0:00:45]}  Kf6 {[%clk 0:01:33]} 22. f4 {[%clk 0:00:37]}  Rhe8 {[%clk 0:01:25]} 23. Rh5 {[%clk 0:00:29]}  Bg6 {[%clk 0:01:07]} 24. Rhg5 {[%clk 0:00:15]}  Rxe5 {[%clk 0:01:06]} 25. Rxe5 {[%clk 0:00:15]}  Re8 {[%clk 0:01:04]} 26. Rxe8 {[%clk 0:00:13]}  Bxe8 {[%clk 0:01:05]} 27. g4 {[%clk 0:00:07]}  Be3+ {[%clk 0:01:04]} 0-1


[Site "https://www.chess.com"]

[Event "Titled Tuesday Blitz August 15 Late 2023"]
[White "Milovic, Aleksandra"]
[Black "Harish, Neeraj"]
[WhiteFideId "933988"]
[BlackFideId "30958130"]
[WhiteElo "2102"]
[BlackElo "2325"]
[Result "0-1"]
[Round "4"]
[TimeControl "180+1"]
[Date "2023.08.15"]
[WhiteClock "0:00:00"]
[BlackClock "0:00:05"]
[Board "155"]

1. e4 {[%clk 0:03:00]}  c6 {[%clk 0:03:00]} 2. d4 {[%clk 0:02:59]}  d5 {[%clk 0:03:00]} 3. exd5 {[%clk 0:03:00]}  cxd5 {[%clk 0:02:59]} 4. Bd3 {[%clk 0:03:00]}  Nc6 {[%clk 0:02:59]} 5. c3 {[%clk 0:02:59]}  Nf6 {[%clk 0:02:59]} 6. Nf3 {[%clk 0:02:58]}  Bg4 {[%clk 0:02:57]} 7. Bf4 {[%clk 0:02:58]}  e6 {[%clk 0:02:57]} 8. Nbd2 {[%clk 0:02:57]}  Bd6 {[%clk 0:02:56]} 9. Bxd6 {[%clk 0:02:55]}  Qxd6 {[%clk 0:02:57]} 10. O-O {[%clk 0:02:55]}  O-O {[%clk 0:02:52]} 11. Qb3 {[%clk 0:02:50]}  Rab8 {[%clk 0:02:51]} 12. a4 {[%clk 0:02:48]}  Bh5 {[%clk 0:02:30]} 13. Rae1 {[%clk 0:02:43]}  Bg6 {[%clk 0:02:30]} 14. Bxg6 {[%clk 0:02:38]}  hxg6 {[%clk 0:02:31]} 15. Ne5 {[%clk 0:02:37]}  Nd7 {[%clk 0:02:21]} 16. f4 {[%clk 0:02:33]}  a6 {[%clk 0:02:09]} 17. Ndf3 {[%clk 0:02:26]}  b5 {[%clk 0:02:08]} 18. axb5 {[%clk 0:02:18]}  axb5 {[%clk 0:02:06]} 19. Nd3 {[%clk 0:02:05]}  b4 {[%clk 0:01:57]} 20. Nfe5 {[%clk 0:01:53]}  bxc3 {[%clk 0:01:51]} 21. Qxc3 {[%clk 0:01:53]}  Rfc8 {[%clk 0:01:35]} 22. Nc5 {[%clk 0:01:08]}  Nxc5 {[%clk 0:01:08]} 23. dxc5 {[%clk 0:01:06]}  Qc7 {[%clk 0:01:02]} 24. Nxc6 {[%clk 0:01:03]}  Qxc6 {[%clk 0:01:02]} 25. b4 {[%clk 0:01:03]}  Rb5 {[%clk 0:00:44]} 26. Ra1 {[%clk 0:00:56]}  Qb7 {[%clk 0:00:40]} 27. Rfb1 {[%clk 0:00:54]}  Rcxc5 {[%clk 0:00:30]} 28. Qxc5 {[%clk 0:00:44]}  Rxc5 {[%clk 0:00:30]} 29. bxc5 {[%clk 0:00:45]}  Qc7 {[%clk 0:00:30]} 30. Rc1 {[%clk 0:00:43]}  d4 {[%clk 0:00:30]} 31. c6 {[%clk 0:00:42]}  d3 {[%clk 0:00:28]} 32. Rab1 {[%clk 0:00:34]}  d2 {[%clk 0:00:21]} 33. Rc2 {[%clk 0:00:31]}  Kh7 {[%clk 0:00:19]} 34. Rd1 {[%clk 0:00:22]}  Qb6+ {[%clk 0:00:13]} 35. Kf1 {[%clk 0:00:20]}  Qb5+ {[%clk 0:00:13]} 36. Kg1 {[%clk 0:00:19]}  Qb6+ {[%clk 0:00:13]} 37. Kh1 {[%clk 0:00:19]}  Qe3 {[%clk 0:00:03]} 38. Rcxd2 {[%clk 0:00:18]}  Qc3 {[%clk 0:00:03]} 39. Rd6 {[%clk 0:00:15]}  g5 {[%clk 0:00:02]} 40. fxg5 {[%clk 0:00:14]}  Kg6 {[%clk 0:00:02]} 41. h3 {[%clk 0:00:14]}  Kxg5 {[%clk 0:00:02]} 42. R1d3 {[%clk 0:00:13]}  Qc1+ {[%clk 0:00:01]} 43. Rd1 {[%clk 0:00:13]}  Qc5 {[%clk 0:00:01]} 44. Kh2 {[%clk 0:00:14]}  Kg6 {[%clk 0:00:01]} 45. h4 {[%clk 0:00:13]}  Qc4 {[%clk 0:00:02]} 46. R6d4 {[%clk 0:00:12]}  Qc5 {[%clk 0:00:02]} 47. Rd6 {[%clk 0:00:10]}  Qc4 {[%clk 0:00:02]} 48. R6d4 {[%clk 0:00:09]}  Qxc6 {[%clk 0:00:02]} 49. Kh3 {[%clk 0:00:08]}  Qc5 {[%clk 0:00:02]} 50. R4d3 {[%clk 0:00:07]}  Qf5+ {[%clk 0:00:02]} 51. g4 {[%clk 0:00:04]}  Qe5 {[%clk 0:00:03]} 52. Rg3 {[%clk 0:00:04]}  Kh7 {[%clk 0:00:03]} 53. Rdg1 {[%clk 0:00:04]}  g6 {[%clk 0:00:04]} 54. h5 {[%clk 0:00:04]}  Kg7 {[%clk 0:00:03]} 55. hxg6 {[%clk 0:00:04]}  Kxg6 {[%clk 0:00:04]} 56. Rf1 {[%clk 0:00:01]}  Qh8+ {[%clk 0:00:04]} 57. Kg2 {[%clk 0:00:01]}  Qb2+ {[%clk 0:00:04]} 58. Rf2 {[%clk 0:00:01]}  Qb7+ {[%clk 0:00:05]} 59. Kg1 {[%clk 0:00:02]}  Qd5 {[%clk 0:00:06]} 60. Kh2 {[%clk 0:00:01]}  Kg7 {[%clk 0:00:05]} 61. Kg1 {[%clk 0:00:02]}  Kf8 {[%clk 0:00:05]} 62. Kh2 {[%clk 0:00:02]}  Ke7 {[%clk 0:00:05]} 63. g5 {[%clk 0:00:02]}  Qe5 {[%clk 0:00:05]} 64. Kg2 {[%clk 0:00:01]}  Qe4+ {[%clk 0:00:05]} 65. Rff3 {[%clk 0:00:00]}  Qg6 {[%clk 0:00:05]} 0-1


[Site "https://www.chess.com"]

[Event "Titled Tuesday Blitz August 15 Late 2023"]
[White "Verony64"]
[Black "Cheer_Down"]
[WhiteElo "2088"]
[BlackElo "2321"]
[Result "1-0"]
[Round "4"]
[TimeControl "180+1"]
[Date "2023.08.15"]
[WhiteClock "0:00:29"]
[BlackClock "0:00:00"]
[Board "156"]

1. e4 {[%clk 0:03:00]}  c5 {[%clk 0:02:59]} 2. Nc3 {[%clk 0:03:00]}  d6 {[%clk 0:02:58]} 3. d3 {[%clk 0:03:01]}  Nc6 {[%clk 0:02:57]} 4. g3 {[%clk 0:03:01]}  g6 {[%clk 0:02:57]} 5. Bg2 {[%clk 0:03:02]}  Bg7 {[%clk 0:02:57]} 6. f4 {[%clk 0:03:02]}  e6 {[%clk 0:02:57]} 7. Nf3 {[%clk 0:03:03]}  Nge7 {[%clk 0:02:57]} 8. O-O {[%clk 0:03:04]}  O-O {[%clk 0:02:56]} 9. Be3 {[%clk 0:03:04]}  Nd4 {[%clk 0:02:53]} 10. Qd2 {[%clk 0:03:04]}  b6 {[%clk 0:02:48]} 11. Rae1 {[%clk 0:03:02]}  Bb7 {[%clk 0:02:41]} 12. Nd1 {[%clk 0:03:02]}  Nxf3+ {[%clk 0:02:33]} 13. Bxf3 {[%clk 0:03:00]}  d5 {[%clk 0:02:33]} 14. e5 {[%clk 0:02:58]}  Qd7 {[%clk 0:02:03]} 15. Qg2 {[%clk 0:02:57]}  Rab8 {[%clk 0:01:59]} 16. c3 {[%clk 0:02:56]}  d4 {[%clk 0:01:56]} 17. cxd4 {[%clk 0:02:48]}  Bxf3 {[%clk 0:01:54]} 18. Qxf3 {[%clk 0:02:45]}  cxd4 {[%clk 0:01:54]} 19. Bf2 {[%clk 0:02:44]}  Qa4 {[%clk 0:01:50]} 20. a3 {[%clk 0:02:40]}  Rfc8 {[%clk 0:01:42]} 21. Qe4 {[%clk 0:02:28]}  Rc2 {[%clk 0:01:25]} 22. Bxd4 {[%clk 0:02:23]}  Rd8 {[%clk 0:01:19]} 23. Bc3 {[%clk 0:02:16]}  Qb3 {[%clk 0:01:10]} 24. Ne3 {[%clk 0:02:09]}  Rxc3 {[%clk 0:01:00]} 25. bxc3 {[%clk 0:02:08]}  Qxc3 {[%clk 0:01:00]} 26. Rd1 {[%clk 0:02:00]}  Bf8 {[%clk 0:00:56]} 27. Nc4 {[%clk 0:01:53]}  Nf5 {[%clk 0:00:49]} 28. Rfe1 {[%clk 0:01:05]}  b5 {[%clk 0:00:41]} 29. Nd6 {[%clk 0:00:57]}  Nxd6 {[%clk 0:00:37]} 30. exd6 {[%clk 0:00:58]}  Rxd6 {[%clk 0:00:26]} 31. d4 {[%clk 0:00:53]}  Rd5 {[%clk 0:00:21]} 32. Rd3 {[%clk 0:00:50]}  Qc4 {[%clk 0:00:21]} 33. Red1 {[%clk 0:00:48]}  a5 {[%clk 0:00:17]} 34. Kg2 {[%clk 0:00:46]}  b4 {[%clk 0:00:17]} 35. axb4 {[%clk 0:00:45]}  axb4 {[%clk 0:00:17]} 36. g4 {[%clk 0:00:42]}  b3 {[%clk 0:00:15]} 37. Qe2 {[%clk 0:00:38]}  Bg7 {[%clk 0:00:10]} 38. Qf2 {[%clk 0:00:33]}  h5 {[%clk 0:00:09]} 39. h3 {[%clk 0:00:32]}  hxg4 {[%clk 0:00:09]} 40. hxg4 {[%clk 0:00:32]}  Qb4 {[%clk 0:00:05]} 41. R1d2 {[%clk 0:00:32]}  Rb5 {[%clk 0:00:04]} 42. Rb2 {[%clk 0:00:31]}  Qc4 {[%clk 0:00:03]} 43. Qd2 {[%clk 0:00:29]}  Rd5 {[%clk 0:00:02]} 44. Rbxb3 {[%clk 0:00:30]}  Bxd4 {[%clk 0:00:00]} 45. Kf3 {[%clk 0:00:29]} 1-0


[Site "https://www.chess.com"]

[Event "Titled Tuesday Blitz August 15 Late 2023"]
[White "cthake"]
[Black "Martinez, Shawn"]
[BlackFideId "2039770"]
[WhiteElo "1826"]
[BlackElo "2318"]
[Result "0-1"]
[Round "4"]
[TimeControl "180+1"]
[Date "2023.08.15"]
[WhiteClock "0:00:00"]
[BlackClock "0:00:31"]
[Board "157"]

1. e4 {[%clk 0:03:00]}  c5 {[%clk 0:02:59]} 2. Nc3 {[%clk 0:02:58]}  e6 {[%clk 0:02:59]} 3. f4 {[%clk 0:02:57]}  a6 {[%clk 0:03:00]} 4. a4 {[%clk 0:02:56]}  Qc7 {[%clk 0:02:58]} 5. d3 {[%clk 0:02:53]}  Nc6 {[%clk 0:02:57]} 6. Nf3 {[%clk 0:02:50]}  d6 {[%clk 0:02:57]} 7. g3 {[%clk 0:02:48]}  g6 {[%clk 0:02:54]} 8. Bg2 {[%clk 0:02:48]}  Bg7 {[%clk 0:02:54]} 9. O-O {[%clk 0:02:48]}  Nge7 {[%clk 0:02:55]} 10. h3 {[%clk 0:02:33]}  Bd7 {[%clk 0:02:50]} 11. Kh2 {[%clk 0:02:28]}  Nd4 {[%clk 0:02:34]} 12. Nxd4 {[%clk 0:02:21]}  cxd4 {[%clk 0:02:26]} 13. Ne2 {[%clk 0:02:21]}  Rc8 {[%clk 0:02:27]} 14. c3 {[%clk 0:01:56]}  dxc3 {[%clk 0:02:26]} 15. bxc3 {[%clk 0:01:56]}  Bxc3 {[%clk 0:02:26]} 16. Nxc3 {[%clk 0:01:56]}  Qxc3 {[%clk 0:02:27]} 17. Rb1 {[%clk 0:01:53]}  Qc7 {[%clk 0:02:14]} 18. Bb2 {[%clk 0:01:51]}  O-O {[%clk 0:02:03]} 19. f5 {[%clk 0:01:50]}  e5 {[%clk 0:01:39]} 20. Rc1 {[%clk 0:01:49]}  Qb6 {[%clk 0:01:36]} 21. Rb1 {[%clk 0:01:31]}  Qc5 {[%clk 0:01:32]} 22. f6 {[%clk 0:01:26]}  Nc6 {[%clk 0:01:29]} 23. Qd2 {[%clk 0:01:25]}  Kh8 {[%clk 0:01:15]} 24. Rbc1 {[%clk 0:01:13]}  Qb4 {[%clk 0:01:12]} 25. Bc3 {[%clk 0:01:09]}  Qxa4 {[%clk 0:01:08]} 26. Qh6 {[%clk 0:00:52]}  Rg8 {[%clk 0:01:06]} 27. h4 {[%clk 0:00:27]}  Nd4 {[%clk 0:01:00]} 28. Bxd4 {[%clk 0:00:17]}  Qxd4 {[%clk 0:00:57]} 29. Rcd1 {[%clk 0:00:16]}  Rc2 {[%clk 0:00:52]} 30. h5 {[%clk 0:00:15]}  Qb2 {[%clk 0:00:40]} 31. Rg1 {[%clk 0:00:12]}  Bg4 {[%clk 0:00:39]} 32. hxg6 {[%clk 0:00:11]}  Rxg6 {[%clk 0:00:37]} 33. Qf8+ {[%clk 0:00:06]}  Rg8 {[%clk 0:00:36]} 34. Qxf7 {[%clk 0:00:00]}  Bf3 {[%clk 0:00:31]} 0-1


[Site "https://www.chess.com"]

[Event "Titled Tuesday Blitz August 15 Late 2023"]
[White "Maluco_do_Natal_00"]
[Black "Ochirbat, Lkhagvajamts"]
[BlackFideId "4903153"]
[WhiteElo "2074"]
[BlackElo "2689"]
[Result "0-1"]
[Round "4"]
[TimeControl "180+1"]
[Date "2023.08.15"]
[WhiteClock "0:00:00"]
[BlackClock "0:00:36"]
[Board "158"]

1. e4 {[%clk 0:03:00]}  e6 {[%clk 0:03:00]} 2. d4 {[%clk 0:03:00]}  d5 {[%clk 0:03:01]} 3. Nc3 {[%clk 0:03:00]}  dxe4 {[%clk 0:03:01]} 4. Nxe4 {[%clk 0:03:00]}  Nd7 {[%clk 0:03:01]} 5. Nf3 {[%clk 0:03:00]}  Ngf6 {[%clk 0:03:01]} 6. Nxf6+ {[%clk 0:03:01]}  Nxf6 {[%clk 0:03:02]} 7. Bd3 {[%clk 0:03:01]}  b6 {[%clk 0:03:02]} 8. Bg5 {[%clk 0:02:56]}  Bb7 {[%clk 0:03:01]} 9. c3 {[%clk 0:02:56]}  Be7 {[%clk 0:03:01]} 10. O-O {[%clk 0:02:56]}  O-O {[%clk 0:03:01]} 11. Qe2 {[%clk 0:02:55]}  h6 {[%clk 0:02:59]} 12. Bh4 {[%clk 0:02:55]}  Qd5 {[%clk 0:02:56]} 13. Rfe1 {[%clk 0:02:45]}  Rfe8 {[%clk 0:02:54]} 14. Bxf6 {[%clk 0:02:43]}  Bxf6 {[%clk 0:02:55]} 15. Be4 {[%clk 0:02:43]}  Qxe4 {[%clk 0:02:55]} 16. Qxe4 {[%clk 0:02:43]}  Bxe4 {[%clk 0:02:56]} 17. Rxe4 {[%clk 0:02:43]}  Rad8 {[%clk 0:02:56]} 18. Ne5 {[%clk 0:02:42]}  Rd5 {[%clk 0:02:55]} 19. f4 {[%clk 0:02:38]}  c5 {[%clk 0:02:54]} 20. dxc5 {[%clk 0:02:28]}  bxc5 {[%clk 0:02:46]} 21. Rae1 {[%clk 0:02:26]}  Rb8 {[%clk 0:02:45]} 22. R1e2 {[%clk 0:02:23]}  Rb6 {[%clk 0:02:40]} 23. Kf2 {[%clk 0:02:04]}  Kf8 {[%clk 0:02:37]} 24. Ra4 {[%clk 0:01:50]}  a6 {[%clk 0:02:26]} 25. Rc4 {[%clk 0:01:35]}  Ke7 {[%clk 0:02:24]} 26. b3 {[%clk 0:01:25]}  g5 {[%clk 0:02:18]} 27. g3 {[%clk 0:01:21]}  gxf4 {[%clk 0:02:14]} 28. gxf4 {[%clk 0:01:22]}  Bh4+ {[%clk 0:02:04]} 29. Kf3 {[%clk 0:01:21]}  Bf6 {[%clk 0:02:03]} 30. Ke4 {[%clk 0:01:05]}  Rb7 {[%clk 0:01:42]} 31. Ra4 {[%clk 0:01:01]}  Rb6 {[%clk 0:01:02]} 32. Rg2 {[%clk 0:00:51]}  Kf8 {[%clk 0:00:53]} 33. Rc4 {[%clk 0:00:30]}  Rbd6 {[%clk 0:00:48]} 34. h3 {[%clk 0:00:17]}  h5 {[%clk 0:00:40]} 35. Ra4 {[%clk 0:00:14]}  Rd1 {[%clk 0:00:40]} 36. Nc4 {[%clk 0:00:10]}  Re1+ {[%clk 0:00:38]} 37. Ne3 {[%clk 0:00:00]}  Bxc3 {[%clk 0:00:36]} 0-1


[Site "https://www.chess.com"]

[Event "Titled Tuesday Blitz August 15 Late 2023"]
[White "Musovic, Armin"]
[Black "Fernandez Hernandez, Gerardo"]
[WhiteFideId "939935"]
[BlackFideId "2207400"]
[WhiteElo "2537"]
[BlackElo "2239"]
[Result "1-0"]
[Round "4"]
[TimeControl "180+1"]
[Date "2023.08.15"]
[WhiteClock "0:00:56"]
[BlackClock "0:00:15"]
[Board "160"]

1. a3 {[%clk 0:03:00]}  Nf6 {[%clk 0:02:55]} 2. Nc3 {[%clk 0:03:01]}  g6 {[%clk 0:02:55]} 3. e4 {[%clk 0:03:01]}  d6 {[%clk 0:02:53]} 4. d4 {[%clk 0:03:02]}  Bg7 {[%clk 0:02:52]} 5. Bg5 {[%clk 0:03:02]}  h6 {[%clk 0:02:50]} 6. Bh4 {[%clk 0:03:02]}  O-O {[%clk 0:02:46]} 7. f4 {[%clk 0:03:03]}  c5 {[%clk 0:02:42]} 8. dxc5 {[%clk 0:03:03]}  dxc5 {[%clk 0:02:39]} 9. Qxd8 {[%clk 0:03:04]}  Rxd8 {[%clk 0:02:39]} 10. e5 {[%clk 0:03:05]}  Ne8 {[%clk 0:02:22]} 11. Bxe7 {[%clk 0:03:02]}  Rd7 {[%clk 0:02:16]} 12. Bxc5 {[%clk 0:03:01]}  b6 {[%clk 0:02:09]} 13. Be3 {[%clk 0:02:54]}  Bb7 {[%clk 0:02:07]} 14. Nf3 {[%clk 0:02:48]}  Bxf3 {[%clk 0:02:07]} 15. gxf3 {[%clk 0:02:48]}  Nc6 {[%clk 0:02:04]} 16. Bb5 {[%clk 0:02:48]}  Rc8 {[%clk 0:02:04]} 17. Rd1 {[%clk 0:02:48]}  Rxd1+ {[%clk 0:02:02]} 18. Kxd1 {[%clk 0:02:49]}  Kf8 {[%clk 0:01:59]} 19. Kc1 {[%clk 0:02:48]}  Nd8 {[%clk 0:01:45]} 20. Bd7 {[%clk 0:02:37]}  Rc7 {[%clk 0:01:40]} 21. Ba4 {[%clk 0:02:34]}  Ne6 {[%clk 0:01:32]} 22. h4 {[%clk 0:02:27]}  h5 {[%clk 0:01:29]} 23. Nb5 {[%clk 0:02:19]}  Re7 {[%clk 0:01:21]} 24. Bb3 {[%clk 0:02:12]}  Bh6 {[%clk 0:01:15]} 25. Bxe6 {[%clk 0:02:02]}  fxe6 {[%clk 0:01:16]} 26. Rg1 {[%clk 0:01:50]}  Kg7 {[%clk 0:01:08]} 27. Nd6 {[%clk 0:01:27]}  Kh7 {[%clk 0:00:49]} 28. Nxe8 {[%clk 0:01:22]}  Rxe8 {[%clk 0:00:48]} 29. Rd1 {[%clk 0:01:23]}  Re7 {[%clk 0:00:47]} 30. Rd4 {[%clk 0:01:22]}  Rf7 {[%clk 0:00:43]} 31. c4 {[%clk 0:01:21]}  Bf8 {[%clk 0:00:38]} 32. b4 {[%clk 0:01:06]}  a5 {[%clk 0:00:32]} 33. Rd6 {[%clk 0:01:03]}  axb4 {[%clk 0:00:28]} 34. axb4 {[%clk 0:01:04]}  Bxd6 {[%clk 0:00:22]} 35. exd6 {[%clk 0:01:05]}  Rb7 {[%clk 0:00:21]} 36. c5 {[%clk 0:00:58]}  bxc5 {[%clk 0:00:20]} 37. bxc5 {[%clk 0:00:59]}  Rb4 {[%clk 0:00:17]} 38. d7 {[%clk 0:00:57]}  Rb8 {[%clk 0:00:17]} 39. c6 {[%clk 0:00:57]}  Kg8 {[%clk 0:00:15]} 40. c7 {[%clk 0:00:56]} 1-0


[Site "https://www.chess.com"]